[Event "*** Titled Tuesday Blitz"]
[Site "Chess.com"]
[Date "2020.04.07"]
[Round "8"]
[White "Arman_Hakemi"]
[Black "anesar92"]
[Result "1/2-1/2"]
[WhiteElo "2604"]
[BlackElo "2728"]
[TimeControl "180+1"]
[EndTime "14:37:17 PDT"]
[Termination "Game drawn by repetition"]

1. Nf3 {[%clk 0:03:00.9]} 1... c5 {[%clk 0:02:53.6]} 2. b3 {[%clk 0:03:00.7]}
2... d6 {[%clk 0:02:52.5]} 3. d4 {[%clk 0:02:59.4]} 3... cxd4 {[%clk 0:02:51.4]}
4. Nxd4 {[%clk 0:03:00.3]} 4... Nf6 {[%clk 0:02:50.1]} 5. Bb2 {[%clk 0:03:00.5]}
5... g6 {[%clk 0:02:50.1]} 6. g3 {[%clk 0:03:00.2]} 6... Bg7 {[%clk 0:02:50.2]}
7. Bg2 {[%clk 0:03:00.8]} 7... O-O {[%clk 0:02:50.4]} 8. O-O {[%clk 0:02:59.9]}
8... Qc7 {[%clk 0:02:43.9]} 9. c4 {[%clk 0:02:59.6]} 9... Nc6 {[%clk 0:02:43.3]}
10. Nc3 {[%clk 0:02:58.9]} 10... Bd7 {[%clk 0:02:43.4]} 11. Rc1 {[%clk 0:02:55]}
11... Qd8 {[%clk 0:02:35.1]} 12. Nd5 {[%clk 0:02:47.4]} 12... Nxd5 {[%clk
0:02:29.1]} 13. Bxd5 {[%clk 0:02:48.3]} 13... Rc8 {[%clk 0:02:26.3]} 14. Nxc6
{[%clk 0:02:31.2]} 14... bxc6 {[%clk 0:02:27.2]} 15. Bxg7 {[%clk 0:02:31.1]}
15... Kxg7 {[%clk 0:02:27.7]} 16. Bg2 {[%clk 0:02:28.8]} 16... Qa5 {[%clk
0:02:19.4]} 17. Qc2 {[%clk 0:02:24.6]} 17... Be6 {[%clk 0:02:09.8]} 18. Rfd1
{[%clk 0:02:23.3]} 18... Rfd8 {[%clk 0:02:08.2]} 19. Qc3+ {[%clk 0:02:21.5]}
19... Qxc3 {[%clk 0:02:07.8]} 20. Rxc3 {[%clk 0:02:22.4]} 20... c5 {[%clk
0:02:07.4]} 21. e4 {[%clk 0:02:20.3]} 21... Rb8 {[%clk 0:02:03.7]} 22. f4 {[%clk
0:02:18.9]} 22... Rb6 {[%clk 0:01:59.8]} 23. Rcd3 {[%clk 0:02:18]} 23... Rdb8
{[%clk 0:01:59.6]} 24. e5 {[%clk 0:02:11.7]} 24... dxe5 {[%clk 0:01:58.3]} 25.
fxe5 {[%clk 0:02:12.6]} 25... a5 {[%clk 0:01:57.3]} 26. Bd5 {[%clk 0:01:51.9]}
26... Bf5 {[%clk 0:01:55.9]} 27. Re3 {[%clk 0:01:48.2]} 27... h5 {[%clk
0:01:50.6]} 28. Kf2 {[%clk 0:01:32.5]} 28... a4 {[%clk 0:01:43.8]} 29. bxa4
{[%clk 0:01:31.9]} 29... Rb2+ {[%clk 0:01:43.3]} 30. Re2 {[%clk 0:01:32.3]}
30... Rxe2+ {[%clk 0:01:38.1]} 31. Kxe2 {[%clk 0:01:33.2]} 31... Rb2+ {[%clk
0:01:34.7]} 32. Rd2 {[%clk 0:01:29.9]} 32... Rb4 {[%clk 0:01:30.3]} 33. Bc6
{[%clk 0:01:14.8]} 33... Rxc4 {[%clk 0:01:29.8]} 34. a5 {[%clk 0:01:15.3]} 34...
Be4 {[%clk 0:01:27.9]} 35. Bb5 {[%clk 0:00:48.5]} 35... Rb4 {[%clk 0:01:24.8]}
36. a4 {[%clk 0:00:48.5]} 36... c4 {[%clk 0:00:45]} 37. Rd4 {[%clk 0:00:36.9]}
37... Bd3+ {[%clk 0:00:45.1]} 38. Ke3 {[%clk 0:00:36.3]} 38... Rb2 {[%clk
0:00:44.4]} 39. Bxc4 {[%clk 0:00:33.9]} 39... Bxc4 {[%clk 0:00:42]} 40. Rxc4
{[%clk 0:00:34.8]} 40... Rb7 {[%clk 0:00:40.2]} 41. Rc6 {[%clk 0:00:32.3]} 41...
Rb4 {[%clk 0:00:38.7]} 42. a6 {[%clk 0:00:28.3]} 42... Rxa4 {[%clk 0:00:38.8]}
43. Rb6 {[%clk 0:00:21.9]} 43... g5 {[%clk 0:00:37.1]} 44. Rb7 {[%clk
0:00:16.2]} 44... Rxa6 {[%clk 0:00:32.7]} 45. Rxe7 {[%clk 0:00:16.4]} 45... Kg6
{[%clk 0:00:33.1]} 46. Ke4 {[%clk 0:00:14.6]} 46... Ra4+ {[%clk 0:00:31.9]} 47.
Kf3 {[%clk 0:00:14.8]} 47... Ra3+ {[%clk 0:00:26.2]} 48. Ke4 {[%clk 0:00:13.6]}
48... Ra2 {[%clk 0:00:26.2]} 49. h4 {[%clk 0:00:08.6]} 49... gxh4 {[%clk
0:00:25.5]} 50. gxh4 {[%clk 0:00:09.5]} 50... Rh2 {[%clk 0:00:21]} 51. Kf4
{[%clk 0:00:05.4]} 51... Rxh4+ {[%clk 0:00:20.6]} 52. Kg3 {[%clk 0:00:04.9]}
52... Rg4+ {[%clk 0:00:19.5]} 53. Kf3 {[%clk 0:00:05.1]} 53... Rg5 {[%clk
0:00:18.2]} 54. e6 {[%clk 0:00:04.8]} 54... Rf5+ {[%clk 0:00:14.9]} 55. Ke4
{[%clk 0:00:03.3]} 55... fxe6 {[%clk 0:00:14.9]} 56. Rxe6+ {[%clk 0:00:03.4]}
56... Kg5 {[%clk 0:00:15.3]} 57. Re8 {[%clk 0:00:03.1]} 57... Rf7 {[%clk
0:00:13.1]} 58. Ke3 {[%clk 0:00:02.2]} 58... Kg4 {[%clk 0:00:12.3]} 59. Rg8+
{[%clk 0:00:01.3]} 59... Kh3 {[%clk 0:00:12.5]} 60. Ke2 {[%clk 0:00:01.5]} 60...
h4 {[%clk 0:00:12]} 61. Rg6 {[%clk 0:00:01.5]} 61... Kh2 {[%clk 0:00:11.7]} 62.
Rg8 {[%clk 0:00:01.9]} 62... h3 {[%clk 0:00:12]} 63. Rg6 {[%clk 0:00:02.5]}
63... Rf5 {[%clk 0:00:11.8]} 64. Rg8 {[%clk 0:00:02.8]} 64... Kh1 {[%clk
0:00:12.1]} 65. Rg6 {[%clk 0:00:03.3]} 65... Rf4 {[%clk 0:00:12.2]} 66. Rg8
{[%clk 0:00:03.7]} 66... Ra4 {[%clk 0:00:10.1]} 67. Kf2 {[%clk 0:00:01.8]} 67...
Ra2+ {[%clk 0:00:09.8]} 68. Kf1 {[%clk 0:00:01.5]} 68... Rg2 {[%clk 0:00:08]}
69. Rf8 {[%clk 0:00:01.3]} 69... Rg3 {[%clk 0:00:05.9]} 70. Kf2 {[%clk
0:00:02.2]} 70... Rg1 {[%clk 0:00:04.7]} 71. Rf7 {[%clk 0:00:03.1]} 71... Rg2+
{[%clk 0:00:04.9]} 72. Kf1 {[%clk 0:00:02.2]} 72... Kh2 {[%clk 0:00:05.3]} 73.
Rf2 {[%clk 0:00:02.2]} 73... Kh1 {[%clk 0:00:04]} 74. Rf5 {[%clk 0:00:01.6]}
74... Ra2 {[%clk 0:00:04]} 75. Rf3 {[%clk 0:00:02]} 75... h2 {[%clk 0:00:04.2]}
76. Rf4 {[%clk 0:00:01.6]} 76... Ra1+ {[%clk 0:00:04.5]} 77. Kf2 {[%clk
0:00:01.8]} 77... Ra2+ {[%clk 0:00:05.4]} 78. Kf1 {[%clk 0:00:02.7]} 78... Ra3
{[%clk 0:00:06]} 79. Rf8 {[%clk 0:00:02.9]} 79... Ra1+ {[%clk 0:00:06.2]} 80.
Kf2 {[%clk 0:00:02.1]} 80... Ra6 {[%clk 0:00:07.1]} 81. Kf1 {[%clk 0:00:02.5]}
81... Ra2 {[%clk 0:00:06.6]} 82. Rf7 {[%clk 0:00:02.1]} 82... Ra3 {[%clk
0:00:06.7]} 83. Rf2 {[%clk 0:00:02.6]} 83... Rb3 {[%clk 0:00:06.6]} 84. Rf6
{[%clk 0:00:02.6]} 84... Ra3 {[%clk 0:00:06.8]} 85. Kf2 {[%clk 0:00:02.9]} 85...
Ra2+ {[%clk 0:00:07]} 86. Kf1 {[%clk 0:00:03.4]} 86... Ra4 {[%clk 0:00:07.5]}
87. Rf7 {[%clk 0:00:03.9]} 87... Ra5 {[%clk 0:00:07.6]} 88. Kf2 {[%clk
0:00:04.4]} 88... Ra6 {[%clk 0:00:07.2]} 89. Kf1 {[%clk 0:00:04.9]} 89... Ra5
{[%clk 0:00:07.4]} 90. Kf2 {[%clk 0:00:05.3]} 90... Ra3 {[%clk 0:00:07.7]} 91.
Kf1 {[%clk 0:00:05.1]} 91... Ra2 {[%clk 0:00:08.1]} 92. Rf8 {[%clk 0:00:04.8]}
92... Ra5 {[%clk 0:00:07.8]} 93. Rf7 {[%clk 0:00:05.1]} 93... Rb5 {[%clk
0:00:08.2]} 94. Rf8 {[%clk 0:00:05.4]} 94... Rb1+ {[%clk 0:00:08.3]} 95. Kf2
{[%clk 0:00:04.9]} 95... Rb2+ {[%clk 0:00:09.2]} 96. Kf1 {[%clk 0:00:05]} 96...
Rc2 {[%clk 0:00:09.7]} 97. Rf7 {[%clk 0:00:04.3]} 97... Rc5 {[%clk 0:00:09.5]}
98. Rf8 {[%clk 0:00:04.6]} 98... Rg5 {[%clk 0:00:09.9]} 99. Rf7 {[%clk
0:00:04.8]} 99... Rg1+ {[%clk 0:00:10.8]} 100. Kf2 {[%clk 0:00:04.8]} 100...
Rg2+ {[%clk 0:00:11.2]} 101. Kf1 {[%clk 0:00:05.1]} 101... Ra2 {[%clk
0:00:12.1]} 102. Rf8 {[%clk 0:00:05.1]} 102... Rb2 {[%clk 0:00:12.3]} 103. Rf7
{[%clk 0:00:05]} 103... Rb4 {[%clk 0:00:12.3]} 104. Rf8 {[%clk 0:00:05.4]}
104... Rb5 {[%clk 0:00:12.7]} 105. Rf7 {[%clk 0:00:05.8]} 105... Ra5 {[%clk
0:00:13]} 1/2-1/2

[Event "*** Titled Tuesday Blitz"]
[Site "Chess.com"]
[Date "2020.04.07"]
[Round "8"]
[White "annamaja"]
[Black "UCantHandleDenker"]
[Result "1-0"]
[WhiteElo "2296"]
[BlackElo "2462"]
[TimeControl "180+1"]
[EndTime "14:37:33 PDT"]
[Termination "annamaja won by checkmate"]

1. e4 {[%clk 0:03:00.9]} 1... c5 {[%clk 0:02:59.1]} 2. Nf3 {[%clk 0:03:00.8]}
2... d6 {[%clk 0:02:58.6]} 3. d4 {[%clk 0:03:01.2]} 3... cxd4 {[%clk 0:02:58.3]}
4. Nxd4 {[%clk 0:03:01.6]} 4... Nf6 {[%clk 0:02:58.8]} 5. Nc3 {[%clk 0:03:01.2]}
5... g6 {[%clk 0:02:58.4]} 6. g3 {[%clk 0:03:00.5]} 6... Bg7 {[%clk 0:02:57.9]}
7. Bg2 {[%clk 0:02:59.3]} 7... O-O {[%clk 0:02:58.4]} 8. O-O {[%clk 0:02:58.6]}
8... Nc6 {[%clk 0:02:56.9]} 9. Nb3 {[%clk 0:02:44.2]} 9... Be6 {[%clk
0:02:53.2]} 10. h3 {[%clk 0:02:42.8]} 10... Rc8 {[%clk 0:02:39.6]} 11. Be3
{[%clk 0:02:40]} 11... a6 {[%clk 0:02:36.9]} 12. f4 {[%clk 0:02:23.2]} 12... b5
{[%clk 0:02:30.7]} 13. Qd2 {[%clk 0:02:11.8]} 13... Bc4 {[%clk 0:01:59.7]} 14.
Rfd1 {[%clk 0:02:05.8]} 14... b4 {[%clk 0:01:57.5]} 15. Nd5 {[%clk 0:01:59.5]}
15... Bxd5 {[%clk 0:01:54.1]} 16. exd5 {[%clk 0:02:00.4]} 16... Na5 {[%clk
0:01:54.5]} 17. Nxa5 {[%clk 0:01:55.2]} 17... Qxa5 {[%clk 0:01:53.7]} 18. a3
{[%clk 0:01:55.2]} 18... Rb8 {[%clk 0:01:44.9]} 19. axb4 {[%clk 0:01:51]} 19...
Qxb4 {[%clk 0:01:44.2]} 20. Qxb4 {[%clk 0:01:16.8]} 20... Rxb4 {[%clk
0:01:45.1]} 21. Bd4 {[%clk 0:00:39.9]} 21... Nd7 {[%clk 0:01:36.5]} 22. Bxg7
{[%clk 0:00:39.4]} 22... Kxg7 {[%clk 0:01:37.4]} 23. b3 {[%clk 0:00:37.7]} 23...
Nc5 {[%clk 0:01:35.6]} 24. Bf1 {[%clk 0:00:33.6]} 24... h5 {[%clk 0:01:27.9]}
25. Bxa6 {[%clk 0:00:19.4]} 25... h4 {[%clk 0:01:27.4]} 26. Bc4 {[%clk
0:00:14.3]} 26... hxg3 {[%clk 0:01:26.6]} 27. Kg2 {[%clk 0:00:14.5]} 27... f5
{[%clk 0:00:51.6]} 28. Ra7 {[%clk 0:00:12.2]} 28... Kf6 {[%clk 0:00:50.3]} 29.
Kxg3 {[%clk 0:00:12.5]} 29... Ne4+ {[%clk 0:00:49.8]} 30. Kg2 {[%clk 0:00:12.9]}
30... Rc8 {[%clk 0:00:45.9]} 31. Rd7 {[%clk 0:00:10.4]} 31... Rcxc4 {[%clk
0:00:44.7]} 32. bxc4 {[%clk 0:00:10.2]} 32... Rxc4 {[%clk 0:00:45.6]} 33. Rc1
{[%clk 0:00:06.9]} 33... Rc3 {[%clk 0:00:43.3]} 34. Rd8 {[%clk 0:00:05.4]} 34...
Kf7 {[%clk 0:00:41.3]} 35. Rh8 {[%clk 0:00:03.9]} 35... Rg3+ {[%clk 0:00:38.6]}
36. Kh2 {[%clk 0:00:03.8]} 36... Rc3 {[%clk 0:00:39.5]} 37. Rh7+ {[%clk
0:00:03.7]} 37... Kf6 {[%clk 0:00:39.7]} 38. Rh8 {[%clk 0:00:03.1]} 38... Nc5
{[%clk 0:00:38.3]} 39. Rf8+ {[%clk 0:00:02.8]} 39... Kg7 {[%clk 0:00:38.5]} 40.
Rc8 {[%clk 0:00:03.6]} 40... Rf3 {[%clk 0:00:35.2]} 41. Re1 {[%clk 0:00:01.8]}
41... Ne4 {[%clk 0:00:34]} 42. Re8 {[%clk 0:00:02.4]} 42... Rf2+ {[%clk
0:00:33.4]} 43. Kg1 {[%clk 0:00:02.2]} 43... Rxf4 {[%clk 0:00:33.3]} 44. Rxe7+
{[%clk 0:00:02.4]} 44... Kf6 {[%clk 0:00:33.9]} 45. Rd7 {[%clk 0:00:02.4]} 45...
Ke5 {[%clk 0:00:33.4]} 46. c4 {[%clk 0:00:02]} 46... Rf3 {[%clk 0:00:31.6]} 47.
c5 {[%clk 0:00:01.8]} 47... dxc5 {[%clk 0:00:31.3]} 48. d6 {[%clk 0:00:01.4]}
48... Ke6 {[%clk 0:00:31.3]} 49. Rd8 {[%clk 0:00:01.7]} 49... Rd3 {[%clk
0:00:30.6]} 50. d7 {[%clk 0:00:02.2]} 50... Rxd7 {[%clk 0:00:29.9]} 51. Rxd7
{[%clk 0:00:03.1]} 51... Kxd7 {[%clk 0:00:30.8]} 52. Kg2 {[%clk 0:00:03.7]}
52... Ke6 {[%clk 0:00:30.9]} 53. Kf3 {[%clk 0:00:04.1]} 53... Ke5 {[%clk
0:00:30.9]} 54. h4 {[%clk 0:00:04.1]} 54... c4 {[%clk 0:00:28.9]} 55. Rg1 {[%clk
0:00:04]} 55... Kf6 {[%clk 0:00:27.6]} 56. Kf4 {[%clk 0:00:03.5]} 56... Nf2
{[%clk 0:00:17.6]} 57. Rf1 {[%clk 0:00:02.9]} 57... Nd3+ {[%clk 0:00:16.9]} 58.
Ke3 {[%clk 0:00:03.3]} 58... Ne5 {[%clk 0:00:17.3]} 59. Kf4 {[%clk 0:00:03.1]}
59... c3 {[%clk 0:00:15.9]} 60. Ke3 {[%clk 0:00:03.5]} 60... Nc4+ {[%clk
0:00:08.7]} 61. Kd3 {[%clk 0:00:03.3]} 61... Nd2 {[%clk 0:00:09.3]} 62. Rc1
{[%clk 0:00:02]} 62... Ne4 {[%clk 0:00:10.2]} 63. Ke3 {[%clk 0:00:02.3]} 63...
Ke5 {[%clk 0:00:10.4]} 64. Rc2 {[%clk 0:00:02.7]} 64... f4+ {[%clk 0:00:10.8]}
65. Kf3 {[%clk 0:00:03.3]} 65... Nd2+ {[%clk 0:00:10.8]} 66. Kg4 {[%clk
0:00:03.2]} 66... Nc4 {[%clk 0:00:10.8]} 67. Rxc3 {[%clk 0:00:03]} 67... Ne3+
{[%clk 0:00:11.7]} 68. Kf3 {[%clk 0:00:03.5]} 68... Nd5 {[%clk 0:00:11.8]} 69.
Rc5 {[%clk 0:00:03.6]} 69... Kd4 {[%clk 0:00:11.3]} 70. Rc8 {[%clk 0:00:04.1]}
70... Ke5 {[%clk 0:00:11.2]} 71. Re8+ {[%clk 0:00:04.2]} 71... Kf6 {[%clk
0:00:11.3]} 72. Rf8+ {[%clk 0:00:04.3]} 72... Ke5 {[%clk 0:00:11.5]} 73. Rg8
{[%clk 0:00:04.5]} 73... Kf6 {[%clk 0:00:11.8]} 74. Ke4 {[%clk 0:00:04.8]} 74...
Ne7 {[%clk 0:00:11.2]} 75. Rf8+ {[%clk 0:00:03.8]} 75... Ke6 {[%clk 0:00:09.7]}
76. Rxf4 {[%clk 0:00:04.7]} 76... Nf5 {[%clk 0:00:09]} 77. Rg4 {[%clk 0:00:05]}
77... Nd6+ {[%clk 0:00:08.5]} 78. Kf4 {[%clk 0:00:03.9]} 78... Kf6 {[%clk
0:00:09.4]} 79. Rg1 {[%clk 0:00:03.9]} 79... Nf5 {[%clk 0:00:09.2]} 80. Rh1
{[%clk 0:00:04.2]} 80... Ne7 {[%clk 0:00:07.5]} 81. h5 {[%clk 0:00:04.2]} 81...
gxh5 {[%clk 0:00:06.9]} 82. Rxh5 {[%clk 0:00:05.1]} 82... Ng6+ {[%clk
0:00:07.8]} 83. Kf3 {[%clk 0:00:04.7]} 83... Ne5+ {[%clk 0:00:07.9]} 84. Ke4
{[%clk 0:00:05.2]} 84... Ng6 {[%clk 0:00:08.8]} 85. Ra5 {[%clk 0:00:05.5]} 85...
Ne7 {[%clk 0:00:03.9]} 86. Ra6+ {[%clk 0:00:05]} 86... Kg5 {[%clk 0:00:03.3]}
87. Re6 {[%clk 0:00:05.1]} 87... Ng6 {[%clk 0:00:03.5]} 88. Re8 {[%clk
0:00:05.2]} 88... Nh4 {[%clk 0:00:03.1]} 89. Rg8+ {[%clk 0:00:04.8]} 89... Ng6
{[%clk 0:00:04]} 90. Kd5 {[%clk 0:00:04.3]} 90... Kf6 {[%clk 0:00:04.9]} 91. Ra8
{[%clk 0:00:04.4]} 91... Ne7+ {[%clk 0:00:05]} 92. Ke4 {[%clk 0:00:04.1]} 92...
Ng6 {[%clk 0:00:05.9]} 93. Ra6+ {[%clk 0:00:03.7]} 93... Kg5 {[%clk 0:00:06.8]}
94. Rb6 {[%clk 0:00:03.8]} 94... Nh4 {[%clk 0:00:06.4]} 95. Rb5+ {[%clk
0:00:03.9]} 95... Kg4 {[%clk 0:00:06.5]} 96. Rb1 {[%clk 0:00:03.4]} 96... Nf3
{[%clk 0:00:06]} 97. Rd1 {[%clk 0:00:02.4]} 97... Ng5+ {[%clk 0:00:06.9]} 98.
Ke5 {[%clk 0:00:02.4]} 98... Nf3+ {[%clk 0:00:06.9]} 99. Ke6 {[%clk 0:00:03.1]}
99... Ng5+ {[%clk 0:00:07.8]} 100. Ke5 {[%clk 0:00:02.2]} 100... Nf3+ {[%clk
0:00:07.8]} 101. Kf6 {[%clk 0:00:02.7]} 101... Ng5 {[%clk 0:00:08.7]} 102. Rg1+
{[%clk 0:00:02.6]} 102... Kf4 {[%clk 0:00:08.7]} 103. Rxg5 {[%clk 0:00:03.5]}
103... Ke4 {[%clk 0:00:09.4]} 104. Rf5 {[%clk 0:00:03.6]} 104... Kd4 {[%clk
0:00:10.3]} 105. Re5 {[%clk 0:00:04.1]} 105... Kc4 {[%clk 0:00:10.4]} 106. Kf5
{[%clk 0:00:05]} 106... Kd4 {[%clk 0:00:11.1]} 107. Kf4 {[%clk 0:00:05.9]}
107... Kc4 {[%clk 0:00:12]} 108. Ke4 {[%clk 0:00:06.8]} 108... Kc3 {[%clk
0:00:12.2]} 109. Rd5 {[%clk 0:00:07.7]} 109... Kc2 {[%clk 0:00:12.5]} 110. Rd4
{[%clk 0:00:08.5]} 110... Kb3 {[%clk 0:00:13.4]} 111. Ke3 {[%clk 0:00:08.6]}
111... Kc3 {[%clk 0:00:14.3]} 112. Ke4 {[%clk 0:00:08.1]} 112... Kb2 {[%clk
0:00:15.2]} 113. Kd3 {[%clk 0:00:09]} 113... Kb3 {[%clk 0:00:14.1]} 114. Rc4
{[%clk 0:00:09.3]} 114... Ka3 {[%clk 0:00:14]} 115. Kc2 {[%clk 0:00:07.2]}
115... Ka2 {[%clk 0:00:13.7]} 116. Ra4# {[%clk 0:00:07.5]} 1-0

[Event "*** Titled Tuesday Blitz"]
[Site "Chess.com"]
[Date "2020.04.07"]
[Round "9"]
[White "mmaks007"]
[Black "ethylalcohol"]
[Result "0-1"]
[WhiteElo "2302"]
[BlackElo "2174"]
[TimeControl "180+1"]
[EndTime "14:41:32 PDT"]
[Termination "ethylalcohol won by resignation"]

1. e4 {[%clk 0:03:00.9]} 1... e6 {[%clk 0:02:59.7]} 2. d4 {[%clk 0:02:58]} 2...
d5 {[%clk 0:03:00.2]} 3. Nc3 {[%clk 0:02:57.6]} 3... Nf6 {[%clk 0:03:00.4]} 4.
e5 {[%clk 0:02:55]} 4... Nfd7 {[%clk 0:03:00.9]} 5. f4 {[%clk 0:02:55]} 5... c5
{[%clk 0:03:01.5]} 6. Nf3 {[%clk 0:02:53.4]} 6... Nc6 {[%clk 0:03:02.1]} 7. Be3
{[%clk 0:02:53.2]} 7... cxd4 {[%clk 0:03:02.6]} 8. Nxd4 {[%clk 0:02:50.9]} 8...
Qb6 {[%clk 0:03:03.1]} 9. Na4 {[%clk 0:02:39.2]} 9... Qa5+ {[%clk 0:03:01.6]}
10. c3 {[%clk 0:02:36.6]} 10... Nxd4 {[%clk 0:02:41.1]} 11. Bxd4 {[%clk
0:02:33.6]} 11... b5 {[%clk 0:02:38.7]} 12. b4 {[%clk 0:02:33.3]} 12... Qxa4
{[%clk 0:02:37.9]} 0-1

[Event "*** Titled Tuesday Blitz"]
[Site "Chess.com"]
[Date "2020.04.07"]
[Round "9"]
[White "MarcoRiehle"]
[Black "ENEASZ"]
[Result "1-0"]
[WhiteElo "2705"]
[BlackElo "2503"]
[TimeControl "180+1"]
[EndTime "14:41:39 PDT"]
[Termination "MarcoRiehle won by resignation"]

1. e4 {[%clk 0:03:00.9]} 1... d6 {[%clk 0:02:59.9]} 2. d4 {[%clk 0:03:00.5]}
2... Nf6 {[%clk 0:03:00.5]} 3. f3 {[%clk 0:03:00.7]} 3... e5 {[%clk 0:03:00.7]}
4. d5 {[%clk 0:02:59.9]} 4... Be7 {[%clk 0:02:59.8]} 5. Be3 {[%clk 0:03:00.2]}
5... O-O {[%clk 0:02:59.4]} 6. Qd2 {[%clk 0:03:00.2]} 6... c6 {[%clk 0:02:53.3]}
7. c4 {[%clk 0:02:59.8]} 7... Nbd7 {[%clk 0:02:37.4]} 8. Nc3 {[%clk 0:02:59]}
8... a6 {[%clk 0:02:36.4]} 9. Bd3 {[%clk 0:02:58.2]} 9... Nc5 {[%clk 0:02:31.1]}
10. Bc2 {[%clk 0:02:56.9]} 10... a5 {[%clk 0:02:25.3]} 11. Nge2 {[%clk
0:02:56.1]} 11... Bd7 {[%clk 0:02:19.9]} 12. Bxc5 {[%clk 0:02:53.7]} 12... dxc5
{[%clk 0:02:13.2]} 13. d6 {[%clk 0:02:54.6]} 13... Be6 {[%clk 0:02:13.6]} 14.
dxe7 {[%clk 0:02:53.9]} 14... Qxe7 {[%clk 0:02:14.5]} 15. b3 {[%clk 0:02:51.9]}
15... a4 {[%clk 0:02:14.5]} 16. O-O {[%clk 0:02:50.6]} 16... Rfd8 {[%clk
0:02:15.4]} 17. Qe3 {[%clk 0:02:50.3]} 17... Rd3 {[%clk 0:02:16.3]} 1-0

[Event "*** Titled Tuesday Blitz"]
[Site "Chess.com"]
[Date "2020.04.07"]
[Round "9"]
[White "donotreadit"]
[Black "jmduque"]
[Result "1-0"]
[WhiteElo "2725"]
[BlackElo "2508"]
[TimeControl "180+1"]
[EndTime "14:42:13 PDT"]
[Termination "donotreadit won by resignation"]

1. Nf3 {[%clk 0:02:58.9]} 1... Nf6 {[%clk 0:02:58.7]} 2. d4 {[%clk 0:02:58.3]}
2... b6 {[%clk 0:02:58.9]} 3. Nbd2 {[%clk 0:02:57.8]} 3... Bb7 {[%clk
0:02:58.9]} 4. g3 {[%clk 0:02:58.3]} 4... g6 {[%clk 0:02:58.9]} 5. Bg2 {[%clk
0:02:58.8]} 5... Bg7 {[%clk 0:02:59.8]} 6. O-O {[%clk 0:02:59.5]} 6... O-O
{[%clk 0:03:00.2]} 7. b3 {[%clk 0:03:00.2]} 7... e6 {[%clk 0:02:58.7]} 8. Bb2
{[%clk 0:03:00.5]} 8... Qe7 {[%clk 0:02:58.4]} 9. c4 {[%clk 0:03:00.4]} 9... d5
{[%clk 0:02:58.6]} 10. Rc1 {[%clk 0:03:00.3]} 10... Rd8 {[%clk 0:02:58.3]} 11.
e3 {[%clk 0:03:00.1]} 11... c5 {[%clk 0:02:58.7]} 12. dxc5 {[%clk 0:02:58.2]}
12... bxc5 {[%clk 0:02:59]} 13. cxd5 {[%clk 0:02:57.9]} 13... exd5 {[%clk
0:02:59.9]} 14. Qc2 {[%clk 0:02:58]} 14... Na6 {[%clk 0:02:59.8]} 15. a3 {[%clk
0:02:56.9]} 15... Rac8 {[%clk 0:02:59.8]} 16. Rfd1 {[%clk 0:02:56.8]} 16... Bh6
{[%clk 0:02:55.1]} 17. Qb1 {[%clk 0:02:54.3]} 17... Ng4 {[%clk 0:02:47.8]} 18.
Re1 {[%clk 0:02:48.6]} 18... f5 {[%clk 0:02:34.8]} 19. Qa1 {[%clk 0:02:45.8]}
19... Re8 {[%clk 0:02:27.3]} 20. h3 {[%clk 0:02:41]} 20... Nxf2 {[%clk
0:02:24.1]} 21. Kxf2 {[%clk 0:02:41.9]} 21... Bxe3+ {[%clk 0:02:24.2]} 22. Kf1
{[%clk 0:02:42.3]} 22... d4 {[%clk 0:02:24.5]} 23. Nc4 {[%clk 0:02:37.5]} 23...
Nc7 {[%clk 0:02:22.8]} 24. Nxe3 {[%clk 0:02:36.3]} 24... d3 {[%clk 0:02:21.7]}
1-0

[Event "*** Titled Tuesday Blitz"]
[Site "Chess.com"]
[Date "2020.04.07"]
[Round "9"]
[White "maxip32"]
[Black "Eloist"]
[Result "1-0"]
[WhiteElo "2463"]
[BlackElo "2267"]
[TimeControl "180+1"]
[EndTime "14:43:01 PDT"]
[Termination "maxip32 won by resignation"]

1. e4 {[%clk 0:03:00.9]} 1... e6 {[%clk 0:03:00.1]} 2. d3 {[%clk 0:03:00.2]}
2... d5 {[%clk 0:03:00]} 3. Nd2 {[%clk 0:02:59.7]} 3... Nf6 {[%clk 0:03:00]} 4.
Ngf3 {[%clk 0:03:00]} 4... b6 {[%clk 0:02:59.6]} 5. g3 {[%clk 0:02:46.9]} 5...
dxe4 {[%clk 0:02:58.5]} 6. dxe4 {[%clk 0:02:46.2]} 6... Bb7 {[%clk 0:02:57.9]}
7. Qe2 {[%clk 0:02:30.4]} 7... Ba6 {[%clk 0:02:57.5]} 8. Qd1 {[%clk 0:02:20.6]}
8... Bxf1 {[%clk 0:02:56.3]} 9. Kxf1 {[%clk 0:02:21.5]} 9... Be7 {[%clk
0:02:48.5]} 10. Kg2 {[%clk 0:02:20.5]} 10... O-O {[%clk 0:02:48.4]} 11. Qe2
{[%clk 0:02:19.7]} 11... Nbd7 {[%clk 0:02:46]} 12. Rd1 {[%clk 0:02:18.2]} 12...
Nc5 {[%clk 0:02:43.7]} 13. Nb3 {[%clk 0:02:08.5]} 13... Qc8 {[%clk 0:02:40.4]}
14. Nxc5 {[%clk 0:02:09]} 14... Bxc5 {[%clk 0:02:39.7]} 15. c3 {[%clk
0:02:07.8]} 15... Qb7 {[%clk 0:02:38.5]} 16. e5 {[%clk 0:02:08]} 16... Nd5
{[%clk 0:02:29.3]} 17. Re1 {[%clk 0:01:46.5]} 17... Ne7 {[%clk 0:02:21.3]} 18.
b4 {[%clk 0:01:39.3]} 1-0

[Event "*** Titled Tuesday Blitz"]
[Site "Chess.com"]
[Date "2020.04.07"]
[Round "9"]
[White "Schachmalanders"]
[Black "Magician4MA"]
[Result "1-0"]
[WhiteElo "2360"]
[BlackElo "2465"]
[TimeControl "180+1"]
[EndTime "14:43:34 PDT"]
[Termination "Schachmalanders won by resignation"]

1. e4 {[%clk 0:03:00.9]} 1... c5 {[%clk 0:02:58.1]} 2. Nc3 {[%clk 0:03:00.3]}
2... Nc6 {[%clk 0:02:56.2]} 3. g3 {[%clk 0:03:00.4]} 3... g6 {[%clk 0:02:54.3]}
4. Bg2 {[%clk 0:03:00.7]} 4... Bg7 {[%clk 0:02:53]} 5. Nge2 {[%clk 0:03:01.6]}
5... e6 {[%clk 0:02:51.2]} 6. d3 {[%clk 0:03:01.9]} 6... Nge7 {[%clk 0:02:50.7]}
7. Be3 {[%clk 0:03:02.4]} 7... d6 {[%clk 0:02:50.6]} 8. Qd2 {[%clk 0:03:02.9]}
8... Nd4 {[%clk 0:02:50.6]} 9. O-O-O {[%clk 0:03:02.7]} 9... Rb8 {[%clk
0:02:38.6]} 10. Bh6 {[%clk 0:03:01.6]} 10... O-O {[%clk 0:02:35.6]} 11. h4
{[%clk 0:03:01.1]} 11... Qa5 {[%clk 0:02:30.7]} 12. Bxg7 {[%clk 0:02:54]} 12...
Kxg7 {[%clk 0:02:30.1]} 13. h5 {[%clk 0:02:52.6]} 13... Nxe2+ {[%clk 0:02:17.6]}
14. Qxe2 {[%clk 0:02:49.7]} 14... Bd7 {[%clk 0:02:17.5]} 15. Qe3 {[%clk
0:02:39.4]} 15... Rh8 {[%clk 0:02:11.9]} 16. Qf4 {[%clk 0:02:34.3]} 16... Qc7
{[%clk 0:01:47.5]} 17. d4 {[%clk 0:01:54.2]} 17... c4 {[%clk 0:01:31.1]} 18. e5
{[%clk 0:01:46.3]} 18... d5 {[%clk 0:01:30.5]} 19. Qf6+ {[%clk 0:01:44.4]} 1-0